bitfinex/quotes_SOLUSD_20260308
["timestamp","ask_amount","ask_price","bid_price","bid_amount"]
[1772974135118,0.28432314,82.27,82.23,0.7261014]
[1772974135328,0.28432314,82.27,82.231,0.5261014]
[1772974137230,0.28432314,82.268,82.231,0.5261014]
[1772974139338,0.28432314,82.266,82.231,0.5261014]
[1772974140642,0.28432314,82.264,82.233,0.5261014]
[1772974141729,12.15613337,82.263,82.233,0.5261014]
[1772974142124,12.15613337,82.263,82.235,0.5261014]
[1772974142931,12.1545081,82.274,82.235,0.5261014]
[1772974143838,0.04244272,82.275,82.237,0.5261014]
[1772974146026,0.04244272,82.275,82.239,0.5261014]
[1772974147351,0.04244272,82.275,82.241,0.5261014]
[1772974150141,0.04244272,82.275,82.243,0.5261014]
[1772974151654,0.04244272,82.275,82.245,0.5261014]
[1772974153759,0.04244272,82.275,82.247,0.5261014]
[1772974159249,0.04244272,82.275,82.249,0.5261014]
[1772974161462,0.04244272,82.275,82.251,0.5261014]
[1772974161962,42.53095645,82.293,82.251,0.5261014]
[1772974163767,0.28432314,82.302,82.253,0.5261014]
[1772974165965,0.28432314,82.3,82.255,0.5261014]
[1772974168251,60.75112693,82.303,82.257,0.5261014]
[1772974168252,0.28432314,82.298,82.257,0.5261014]
[1772974171164,42.52888925,82.297,82.258,12.15687227]
[1772974171379,0.28432314,82.296,82.259,0.5261014]
[1772974172175,42.52888925,82.297,82.259,0.5261014]
[1772974172867,12.42972451,82.325,82.259,0.5261014]
[1772974172868,12.14978251,82.306,82.259,0.5261014]
[1772974173075,7.60494882,82.325,82.262,0.28432314]
[1772974173273,19.75195536,82.325,82.265,0.5261014]
[1772974174873,19.75195536,82.325,82.264,103.32587764]
[1772974174874,19.75195536,82.325,82.269,0.5261014]
[1772974175487,19.75195536,82.325,82.274,0.5261014]
[1772974178968,19.75195536,82.325,82.276,0.5261014]
[1772974182088,50.11940145,82.325,82.278,0.5261014]
[1772974184165,50.11940145,82.325,82.279,12.15376949]
[1772974184392,50.11940145,82.325,82.28,0.5261014]
[1772974186271,50.11940145,82.325,82.282,0.5261014]
[1772974187890,0.28432314,82.334,82.284,0.5261014]
[1772974192402,0.28432314,82.334,82.286,0.5261014]
[1772974192403,42.51029356,82.333,82.286,0.5261014]
[1772974195294,42.51029356,82.333,82.288,0.5261014]
[1772974196102,103.23928436,82.333,82.288,0.5261014]
[1772974196983,42.51029356,82.333,82.288,0.5261014]
[1772974197779,42.51029356,82.333,82.289,12.15229252]
[1772974197979,42.51029356,82.333,82.29,0.5261014]
[1772974201284,4.82477569,82.326,82.247,0.5261014]
[1772974201484,8.51860971,82.318,82.247,0.5261014]
[1772974201717,8.51860971,82.314,82.247,0.5261014]
[1772974201893,0.28432314,82.313,82.247,0.5261014]
[1772974203187,0.28432314,82.313,82.229,60.80517793]
[1772974203188,8.51860971,82.308,82.249,0.5261014]
[1772974203492,0.28432314,82.307,82.249,0.5261014]
[1772974204312,3.69383402,82.303,82.251,0.5261014]
[1772974204503,0.28432314,82.302,82.251,0.5261014]
[1772974205709,0.28432314,82.3,82.253,0.5261014]
[1772974210604,0.28432314,82.298,82.255,0.5261014]
[1772974213117,0.28432314,82.296,82.255,0.5261014]
[1772974215334,0.28432314,82.294,82.256,0.5261014]
[1772974217029,42.53095645,82.293,82.256,0.5261014]
[1772974219213,0.28432314,82.292,82.242,0.5261014]
[1772974221827,0.28432314,82.29,82.243,0.5261014]
[1772974223132,0.14216157,82.29,82.243,0.5261014]
[1772974224632,0.14216157,82.29,82.245,0.5261014]
[1772974225212,0.28432314,82.29,82.245,0.5261014]
[1772974226648,0.28432314,82.288,82.245,0.5261014]
[1772974227533,0.28432314,82.288,82.246,0.5261014]
[1772974228423,0.28432314,82.286,82.248,0.5261014]
[1772974230842,0.28432314,82.284,82.248,0.5261014]
[1772974231045,42.53509144,82.285,82.248,0.5261014]
[1772974231345,0.28432314,82.284,82.25,0.5261014]
[1772974231545,42.53509144,82.285,82.25,0.5261014]
[1772974232826,0.28432314,82.301,82.252,0.5261014]
[1772974233746,0.28432314,82.299,82.253,12.15761127]
[1772974234044,0.28432314,82.299,82.254,0.5261014]
[1772974236442,12.15096357,82.298,82.256,0.5261014]
[1772974237545,12.1496349,82.307,82.257,0.5261014]
[1772974238341,0.28432314,82.323,82.26,0.5261014]
[1772974238542,60.73564532,82.324,82.26,0.5261014]
[1772974238748,0.28432314,82.323,82.26,0.5261014]
[1772974241232,30.36855275,82.322,82.263,0.5261014]
[1772974243245,30.36855275,82.322,82.265,0.5261014]
[1772974243673,5.10909883,82.317,82.265,0.5261014]
[1772974243838,0.28432314,82.313,82.265,0.5261014]
[1772974247370,103.26562348,82.312,82.265,0.5261014]
[1772974249450,103.26562348,82.312,82.235,0.28432314]
[1772974249451,8.51860971,82.308,82.261,0.5261014]
[1772974249657,0.28432314,82.307,82.261,0.5261014]
[1772974251167,3.69383402,82.309,82.261,0.5261014]
[1772974251354,0.28432314,82.308,82.261,0.5261014]
[1772974251554,3.69383402,82.304,82.263,0.5261014]
[1772974251755,0.28432314,82.303,82.263,0.5261014]
[1772974252480,42.52372215,82.307,82.263,0.5261014]
[1772974252681,0.28432314,82.306,82.263,0.5261014]
[1772974255285,0.28432314,82.304,82.265,0.5261014]
[1772974257173,0.28432314,82.304,82.254,30.39364879]
[1772974257174,5.10909883,82.304,82.245,0.5261014]
[1772974257353,5.10909883,82.302,82.247,0.5261014]
[1772974261388,5.10909883,82.3,82.249,0.5261014]
[1772974262285,0.28432314,82.3,82.249,0.5261014]
[1772974262485,42.52682226,82.301,82.249,0.5261014]
[1772974263573,4.82477569,82.302,82.251,0.5261014]
[1772974263896,0.28432314,82.301,82.251,0.5261014]
[1772974265877,0.28432314,82.299,82.253,0.5261014]
[1772974268291,0.28432314,82.297,82.255,0.5261014]
[1772974270291,0.28432314,82.295,82.257,0.5261014]
[1772974272892,0.28432314,82.293,82.257,0.5261014]
[1772974273785,0.28432314,82.293,82.259,0.5261014]
[1772974275892,12.15184951,82.292,82.261,0.5261014]
[1772974278202,12.15184951,82.292,82.263,0.5261014]
[1772974279401,12.15184951,82.292,82.265,0.5261014]
[1772974282295,12.15184951,82.292,82.267,0.5261014]
[1772974289007,60.74596039,82.31,82.236,60.80055387]
[1772974289008,42.51597385,82.322,82.269,0.5261014]
[1772974289209,4.82477569,82.321,82.269,0.5261014]
[1772974289512,0.28432314,82.313,82.269,0.5261014]
[1772974291411,42.52113908,82.312,82.271,0.5261014]
[1772974294411,42.52113908,82.312,82.273,0.5261014]
[1772974297412,4.82477569,82.317,82.235,0.28432314]
[1772974297413,12.14829522,82.317,82.275,0.5261014]
[1772974298504,3.69383402,82.34,82.277,0.5261014]
[1772974298711,0.28432314,82.335,82.277,0.5261014]
[1772974300605,0.28432314,82.333,82.279,0.5261014]
[1772974306401,42.51080988,82.332,82.281,0.5261014]
[1772974309304,42.51080988,82.332,82.283,0.5261014]
[1772974312326,42.51080988,82.332,82.284,12.15303096]
[1772974312530,42.51080988,82.332,82.285,0.5261014]
[1772974314820,42.51080988,82.332,82.287,0.5261014]
[1772974315609,12.14594568,82.332,82.287,0.5261014]
[1772974315813,12.14284846,82.353,82.289,0.5261014]
[1772974316430,12.14284846,82.353,82.289,0.66826297]
[1772974316634,12.14284846,82.353,82.29,0.5261014]
[1772974316824,12.14284846,82.353,82.292,0.5261014]
[1772974319839,12.14284846,82.353,82.295,0.5261014]
[1772974321117,3.36870014,82.354,82.298,0.5261014]
[1772974321322,0.2,82.37,82.298,0.5261014]
[1772974321323,0.2,82.37,82.303,0.49020572]
[1772974321647,0.49018118,82.369,82.306,0.49020572]
[1772974321836,0.49018118,82.369,82.308,0.49020572]
[1772974322140,0.49018118,82.369,82.311,0.49020572]
[1772974322342,0.49018118,82.368,82.314,0.49020572]
[1772974322529,0.49018118,82.368,82.296,42.52940604]
[1772974322530,0.49018118,82.367,82.296,42.52940604]
[1772974323219,0.48931513,82.364,82.296,30.37814717]
[1772974323534,0.48931513,82.361,82.296,30.37814717]
[1772974323913,0.46355097,82.357,82.289,12.15229252]
[1772974324117,0.46355097,82.346,82.289,12.15229252]
[1772974324826,0.46355097,82.346,82.289,12.62447925]
[1772974325324,4.82477569,82.356,82.289,12.62447925]
[1772974325325,0.46355097,82.341,82.289,12.62447925]
[1772974326144,0.46355097,82.341,82.29,0.47218673]
[1772974326341,0.46355097,82.338,82.291,12.15199718]
[1772974327824,0.46355097,82.338,82.291,12.62418391]
[1772974328144,0.46355097,82.338,82.292,0.47218673]
[1772974329440,0.46355097,82.335,82.294,0.47218673]
[1772974331345,0.46355097,82.335,82.293,42.53095645]
[1772974331346,0.46355097,82.332,82.29,0.47218673]
[1772974333355,0.46355097,82.33,82.292,0.47218673]
[1772974334226,12.14549894,82.336,82.292,0.47218673]
[1772974334431,0.46355097,82.335,82.292,0.47218673]
[1772974335250,312.9,82.412,82.294,3.69383402]
[1772974335454,26.9131603,82.668,82.294,3.69383402]
[1772974335455,7.91780113,82.411,82.344,3.69383402]
[1772974335631,0.5,82.411,82.344,0.28432314]
[1772974336158,0.5,82.411,82.349,0.28432314]
[1772974336357,0.2,82.42,82.353,3.69383402]
[1772974336652,0.2,82.42,82.348,3.69383402]
[1772974336653,0.2,82.42,82.359,0.47218673]
[1772974336846,0.2,82.42,82.363,3.69383402]
[1772974337029,0.2,82.42,82.365,0.47218673]
[1772974337432,0.2,82.42,82.371,0.47218673]
[1772974338326,0.46355097,82.419,82.371,0.47218673]
[1772974338537,12.12853898,82.451,82.375,3.69383402]
[1772974338739,0.46355097,82.429,82.376,0.47218673]
[1772974339942,0.46355097,82.427,82.376,0.47218673]
[1772974340248,0.46355097,82.427,82.378,0.47218673]
[1772974345355,0.46355097,82.424,82.381,0.47218673]
[1772974346656,0.46355097,82.424,82.38,12.13886865]
[1772974346856,0.46355097,82.424,82.381,0.47218673]
[1772974347557,0.74787411,82.422,82.382,42.95719559]
[1772974347765,0.46355097,82.421,82.382,42.95719559]
[1772974347942,0.46355097,82.421,82.382,12.13857396]
[1772974348143,3.69383402,82.44,82.382,12.13857396]
[1772974348144,0.46355097,82.424,82.386,0.47218673]
[1772974349664,0.46355097,82.424,82.388,0.47218673]
[1772974350762,0.46355097,82.424,82.39,0.47218673]
[1772974353568,0.46355097,82.424,82.392,0.46083891]
[1772974354458,0.28432314,82.435,82.398,0.46083891]
[1772974354768,0.28432314,82.435,82.399,62.66083891]
[1772974355852,12.1311001,82.433,82.4,12.13592233]
[1772974356270,0.28432314,82.437,82.401,0.46083891]
[1772974356459,0.47374573,82.436,82.401,0.46083891]
[1772974358775,0.47374573,82.431,82.379,30.34729517]
[1772974360364,0.47374573,82.427,82.375,62.2]
[1772974360567,0.75806887,82.425,82.376,12.600297]
[1772974360762,0.47374573,82.424,82.377,0.46083891]
[1772974361971,0.47374573,82.421,82.379,0.46083891]
[1772974363495,0.47374573,82.418,82.38,12.59970756]
[1772974363690,3.69383402,82.417,82.38,11.46660588]
[1772974363899,0.47374573,82.415,82.366,42.49289388]
[1772974364595,0.47374573,82.415,82.367,0.46083891]
[1772974365082,0.47374573,82.415,82.366,42.49289388]
[1772974365083,0.47374573,82.412,82.369,0.46083891]
[1772974366195,0.47374573,82.409,82.369,0.46083891]
[1772974367695,0.47374573,82.406,82.371,0.46083891]
[1772974369398,0.47374573,82.403,82.373,0.46083891]
[1772974370883,0.47374573,82.403,82.374,62.2]
[1772974371086,3.69383402,82.442,82.375,0.46083891]
[1772974371394,0.47374573,82.422,82.379,0.46083891]
[1772974371702,0.47374573,82.42,82.381,0.46083891]
[1772974374191,0.47374573,82.417,82.383,0.46083891]
[1772974374691,0.47374573,82.417,82.356,103.6]
[1772974374692,0.47374573,82.416,82.359,0.46083891]
[1772974376813,0.47374573,82.413,82.361,0.46083891]
[1772974377024,0.47374573,82.407,82.361,0.46083891]
[1772974377200,0.47374573,82.406,82.361,0.46083891]
[1772974379015,0.47374573,82.403,82.363,0.46083891]
[1772974379631,0.47374573,82.401,82.363,0.46083891]
[1772974381113,0.47374573,82.398,82.36,12.14173468]
[1772974381321,0.47374573,82.398,82.361,62.2]
[1772974381660,0.47374573,82.398,82.337,103.6]
[1772974381661,0.28432314,82.38,82.321,0.46083891]
[1772974381825,0.47374573,82.368,82.32,12.14771622]
[1772974382219,0.47374573,82.365,82.321,0.46083891]
[1772974383233,0.47590083,82.362,82.323,0.46635716]
[1772974385328,0.7755968,82.36,82.325,0.49775486]
[1772974385536,0.49127366,82.359,82.325,0.49775486]
[1772974387432,0.49127366,82.356,82.327,0.49775486]
[1772974387631,0.49127366,82.353,82.327,0.49775486]
[1772974388038,0.49127366,82.353,82.313,0.49775486]
[1772974389717,0.49127366,82.351,82.315,0.49775486]
[1772974390139,0.49127366,82.349,82.315,0.49775486]
[1772974390537,0.49127366,82.349,82.317,0.49775486]
[1772974393451,0.49127366,82.348,82.32,0.49775486]
[1772974393650,0.49127366,82.347,82.32,0.49775486]
[1772974395251,0.49127366,82.347,82.322,0.49775486]
[1772974396453,0.49127366,82.347,82.324,0.49775486]
[1772974396959,0.49127366,82.352,82.324,0.49775486]
[1772974397134,8.11543434,82.346,82.324,0.49775486]
[1772974398435,165.75024695,82.412,82.347,42.50306628]
[1772974398655,30.3365638,82.409,82.348,0.49775486]
[1772974398951,12.87308078,82.393,82.348,0.49775486]
[1772974400436,0.49127366,82.39,82.35,0.49775486]
[1772974402757,0.49127366,82.388,82.352,0.49775486]
[1772974405339,0.736,82.393,82.333,0.49775486]
[1772974405340,0.49127366,82.385,82.333,0.49775486]
[1772974407461,0.49127366,82.382,82.335,0.49775486]
[1772974409950,0.49127366,82.379,82.337,0.49775486]
[1772974411258,0.49127366,82.376,82.339,0.49775486]
[1772974411475,0.49127366,82.376,82.341,0.49775486]
[1772974414467,0.45053518,82.373,82.343,0.46311682]
[1772974416868,0.45053518,82.371,82.343,0.46311682]
[1772974419479,0.45053518,82.368,82.317,12.14815894]
[1772974419775,0.45053518,82.368,82.319,0.46311682]
[1772974422277,0.45053518,82.365,82.321,0.46311682]
[1772974426581,0.45053518,82.362,82.323,0.46311682]
[1772974429588,0.45053518,82.359,82.325,0.46311682]
[1772974431171,4.82477569,82.376,82.324,12.14712598]
[1772974431172,0.45053518,82.371,82.327,0.46311682]
[1772974431481,12.14034235,82.37,82.328,42.51287531]
[1772974431688,12.14034235,82.37,82.329,0.46311682]
[1772974432373,12.59087753,82.37,82.329,0.46311682]
[1772974433686,0.45053518,82.37,82.331,0.46311682]
[1772974433888,12.13985583,82.374,82.331,0.46311682]
[1772974434588,12.59039101,82.374,82.333,0.46311682]
[1772974435381,12.13985583,82.374,82.333,0.46311682]
[1772974435589,0.45053518,82.373,82.333,0.46311682]
[1772974437189,0.45053518,82.373,82.334,42.50977724]
[1772974437389,0.45053518,82.373,82.336,0.46311682]
[1772974439490,0.45053518,82.371,82.338,0.46311682]
[1772974440789,0.45053518,82.371,82.325,0.46311682]
[1772974440992,0.45053518,82.37,82.325,0.46311682]
[1772974441678,0.45053518,82.367,82.329,0.46311682]
[1772974443879,0.53971452,82.365,82.332,0.55544364]
[1772974446775,0.53971452,82.365,82.334,0.55544364]
[1772974446976,0.53971452,82.37,82.336,0.55544364]
[1772974449179,0.53971452,82.37,82.338,0.55544364]
[1772974450497,0.53971452,82.37,82.341,0.55544364]
[1772974452975,0.53971452,82.375,82.343,0.55544364]
[1772974453181,0.53971452,82.375,82.345,0.55544364]
[1772974454907,0.53971452,82.375,82.344,53.77768958]
[1772974455606,0.53971452,82.373,82.345,12.69947181]
[1772974455786,0.53971452,82.373,82.346,0.55544364]
[1772974456598,0.53971452,82.373,82.347,53.77768958]
[1772974458688,0.53971452,82.371,82.348,12.14358575]
[1772974459397,0.53971452,82.371,82.347,53.77768958]
[1772974459604,0.53971452,82.371,82.339,0.55544364]
[1772974460603,0.53971452,82.375,82.339,0.55544364]
[1772974460808,0.53971452,82.375,82.341,0.55544364]
[1772974461892,0.53971452,82.375,82.343,0.55544364]
[1772974462598,0.53971452,82.375,82.345,0.55544364]
[1772974464903,0.53971452,82.387,82.347,0.55544364]
[1772974465208,0.53971452,82.387,82.349,0.55544364]
[1772974468511,0.53971452,82.385,82.352,0.55544364]
[1772974469410,0.53971452,82.392,82.354,0.55544364]
[1772974471096,0.53971452,82.392,82.356,0.55544364]
[1772974473722,0.64798706,82.39,82.358,0.64495991]
[1772974474610,0.64798706,82.39,82.36,0.64495991]
[1772974476626,0.64798706,82.39,82.362,0.64495991]
[1772974477504,0.64798706,82.39,82.364,0.64495991]
[1772974477709,0.64798706,82.39,82.366,0.64495991]
[1772974480935,0.64798706,82.39,82.368,0.64495991]
[1772974482129,0.64798706,82.388,82.365,53.77768958]
[1772974482306,0.64798706,82.387,82.346,0.64495991]
[1772974486537,0.64798706,82.384,82.348,0.64495991]
[1772974489637,0.64798706,82.382,82.35,0.64495991]
[1772974491335,0.64798706,82.382,82.343,62.2]
[1772974491336,0.64798706,82.38,82.352,0.64495991]
[1772974492636,0.64798706,82.378,82.354,0.64495991]
[1772974495645,0.64798706,82.376,82.356,0.64495991]
[1772974497737,0.64798706,82.376,82.358,0.64495991]
[1772974499152,0.64798706,82.38,82.358,0.64495991]
[1772974500546,0.64798706,82.378,82.36,0.64495991]
[1772974501532,0.64798706,82.378,82.352,62.2]
[1772974501752,0.64798706,82.378,82.347,62.2]
[1772974502842,0.65726812,82.376,82.348,12.14358575]
[1772974503931,12.13960546,82.375,82.348,12.84877658]
[1772974504135,0.70107573,82.374,82.349,0.70519083]
[1772974505535,0.70107573,82.372,82.35,12.14329083]
[1772974509854,0.70107573,82.372,82.35,0.70519083]
[1772974512664,0.70107573,82.372,82.351,12.14314337]
[1772974513858,12.14019497,82.371,82.351,12.14314337]
[1772974514162,0.70107573,82.37,82.351,12.14314337]
[1772974514855,0.70107573,82.368,82.32,0.70519083]
[1772974515054,0.70107573,82.368,82.322,0.70519083]
[1772974516165,0.70107573,82.366,82.324,0.70519083]
[1772974519269,0.70107573,82.364,82.326,0.70519083]
[1772974519773,0.70107573,82.364,82.328,0.70519083]
[1772974521868,0.70107573,82.362,82.33,0.70519083]
[1772974522661,0.70107573,82.362,82.332,0.70519083]
[1772974524473,0.70107573,82.36,82.334,0.70519083]
[1772974527175,0.70107573,82.358,82.334,0.70519083]
[1772974528650,0.70107573,82.356,82.334,0.70519083]
[1772974529882,12.1422587,82.357,82.328,0.70519083]
[1772974529883,0.70107573,82.355,82.328,0.70519083]
[1772974530055,0.70107573,82.355,82.329,0.70519083]
[1772974530255,0.70107573,82.362,82.329,0.70519083]
[1772974530771,0.70107573,82.36,82.331,0.70519083]
[1772974531752,0.70107573,82.364,82.331,0.70519083]
[1772974531953,12.14113633,82.365,82.331,0.70519083]
[1772974532355,0.70107573,82.364,82.331,0.70519083]
[1772974534087,0.68583594,82.362,82.327,62.2]
[1772974534256,0.68583594,82.361,82.313,0.74085781]
[1772974535268,0.28432314,82.359,82.314,0.74085781]
[1772974535474,0.68583594,82.358,82.314,0.74085781]
[1772974535666,0.28432314,82.349,82.302,16.14129762]
[1772974535856,0.68583594,82.348,82.303,0.74085781]
[1772974537274,0.68583594,82.345,82.305,0.74085781]
[1772974539477,0.68583594,82.342,82.302,3.99094865]
[1772974539865,0.68583594,82.342,82.303,0.74085781]
[1772974540568,0.68583594,82.342,82.302,3.25009084]
[1772974541460,0.68583594,82.339,82.302,3.25009084]
[1772974543052,0.68583594,82.336,82.302,3.25009084]
[1772974543252,0.68583594,82.336,82.304,0.74085781]
[1772974545377,0.68583594,82.333,82.304,0.74085781]
[1772974545976,0.68583594,82.345,82.306,0.74085781]
[1772974546675,0.68583594,82.345,82.308,0.74085781]
[1772974546875,0.68583594,82.342,82.308,0.74085781]
[1772974547467,0.68583594,82.375,82.31,0.74085781]
[1772974547776,0.68583594,82.367,82.31,0.74085781]
[1772974548076,0.68583594,82.366,82.31,0.74085781]
[1772974549577,12.13945809,82.376,82.312,0.74085781]
[1772974549777,0.82799751,82.375,82.313,0.74085781]
[1772974549978,0.82799751,82.374,82.313,0.74085781]
[1772974550282,0.68583594,82.372,82.313,0.74085781]
[1772974552575,0.68583594,82.372,82.311,165.46687804]
[1772974552576,0.82799751,82.37,82.315,0.74085781]
[1772974554775,0.82799751,82.368,82.317,0.74085781]
[1772974555669,0.82799751,82.365,82.321,0.74085781]
[1772974555869,0.82799751,82.365,82.32,42.51700679]
[1772974555870,0.68583594,82.364,82.323,0.74085781]
[1772974556996,0.82799751,82.364,82.323,0.74085781]
[1772974557672,0.68583594,82.358,82.319,0.74085781]
[1772974558773,0.28432314,82.356,82.321,0.74085781]
[1772974558979,0.68583594,82.355,82.321,0.74085781]
[1772974560883,0.68583594,82.352,82.316,0.74085781]
[1772974561983,0.68583594,82.349,82.316,0.74085781]
[1772974563197,0.71886733,82.346,82.316,0.74085781]
[1772974564301,0.73282722,82.343,82.316,0.74085781]
[1772974565280,0.73282722,82.341,82.316,0.74085781]
[1772974566890,0.73282722,82.339,82.316,0.74085781]
[1772974567607,0.73282722,82.338,82.303,0.72432886]
[1772974567806,0.73282722,82.338,82.304,0.72432886]
[1772974568883,0.73282722,82.335,82.299,0.72432886]
[1772974569083,0.73282722,82.33,82.285,0.72432886]
[1772974569701,8.51860971,82.326,82.277,0.72432886]
[1772974569892,0.73282722,82.318,82.266,12.15555419]
[1772974570102,0.73282722,82.318,82.269,12.15511954]
[1772974570807,1.01715036,82.316,82.26,0.1]
[1772974570991,0.73282722,82.315,82.26,0.1]
[1772974571390,0.73282722,82.31,82.26,0.1]
[1772974571787,0.73282722,82.31,82.265,0.72432886]
[1772974572594,0.28432314,82.308,82.269,0.72432886]
[1772974572801,0.73282722,82.307,82.27,0.82432886]
[1772974573397,12.14933968,82.309,82.27,0.82432886]
[1772974574196,0.73282722,82.312,82.272,0.72432886]
[1772974574505,0.73282722,82.324,82.274,0.72432886]
[1772974576903,0.73282722,82.327,82.276,0.72432886]
[1772974577088,12.87951056,82.327,82.276,0.72432886]
[1772974577290,0.73282722,82.326,82.276,0.72432886]
[1772974578886,0.73282722,82.324,82.278,0.72432886]
[1772974579593,0.73282722,82.324,82.28,0.72432886]
[1772974580294,0.73282722,82.323,82.28,0.72432886]
[1772974580888,0.73282722,82.321,82.282,0.72432886]
[1772974583113,0.73282722,82.319,82.284,0.72432886]
[1772974583991,12.14801137,82.318,82.285,12.15288327]
[1772974584213,0.73282722,82.317,82.286,0.72432886]
[1772974585716,6.09972718,82.328,82.288,0.72432886]
[1772974585916,5.36689996,82.328,82.29,0.72432886]
[1772974586213,5.36689996,82.328,82.292,0.72432886]
[1772974588320,5.36689996,82.328,82.294,0.72432886]
[1772974588916,5.36689996,82.328,82.295,62.2]
[1772974589118,5.36689996,82.328,82.296,0.72432886]
[1772974590418,5.36689996,82.328,82.297,42.52888925]
[1772974590618,5.36689996,82.328,82.298,0.72432886]
[1772974592632,5.36689996,82.328,82.299,42.52785573]
[1772974592835,0.73282722,82.335,82.3,0.78423543]
[1772974593833,0.73282722,82.335,82.302,0.78423543]
[1772974594732,0.73165161,82.333,82.304,0.78423543]
[1772974596123,0.73165161,82.333,82.306,0.78423543]
[1772974596430,0.73165161,82.333,82.308,0.78423543]
[1772974596928,0.73165161,82.333,82.309,12.14933968]
[1772974597136,0.73165161,82.333,82.31,0.78423543]
[1772974598220,0.73165161,82.331,82.309,12.14933968]
[1772974598427,0.73165161,82.331,82.309,0.78423543]
[1772974599138,0.73165161,82.329,82.309,12.93357511]
[1772974601222,0.73165161,82.329,82.31,0.78423543]
[1772974601423,0.73165161,82.341,82.31,0.78423543]
[1772974603541,0.73165161,82.339,82.312,0.78423543]
[1772974605635,0.28432314,82.351,82.309,62.2]
[1772974605636,0.73165161,82.337,82.314,0.78423543]
[1772974609728,0.73165161,82.335,82.314,0.78423543]
[1772974611161,0.73165161,82.333,82.314,0.78423543]
[1772974615661,0.73165161,82.331,82.314,0.78423543]
[1772974616467,0.73165161,82.331,82.316,0.78423543]
[1772974620767,7.95059707,82.362,82.32,0.78423543]
[1772974620768,12.14166899,82.361,82.32,0.78423543]
[1772974621169,42.49584147,82.361,82.32,0.78423543]
[1772974621461,5.10909883,82.36,82.311,12.14901529]
[1772974621847,5.10909883,82.36,82.311,12.93325072]
[1772974622047,5.10909883,82.36,82.312,0.78423543]
[1772974622664,0.83066092,82.359,82.312,0.78423543]
[1772974622855,0.83066092,82.356,82.312,0.78423543]
[1772974624753,1.08095064,82.354,82.312,0.78423543]
[1772974624958,0.7966275,82.353,82.312,0.78423543]
[1772974627674,1.08095064,82.351,82.312,0.78423543]
[1772974627875,0.28432314,82.349,82.314,0.81590383]
[1772974628064,0.7966275,82.348,82.314,0.81590383]
[1772974629675,12.14373322,82.347,82.316,0.81590383]
[1772974630672,12.14373322,82.347,82.315,12.1484541]
[1772974630673,12.14373322,82.347,82.318,0.81590383]
[1772974630978,12.14373322,82.347,82.317,62.2]
[1772974630979,12.14373322,82.347,82.32,0.81590383]
[1772974631763,12.94036072,82.347,82.32,0.81590383]
[1772974632159,12.14373322,82.347,82.32,0.81590383]
[1772974632371,0.7966275,82.346,82.32,0.81590383]
[1772974633783,12.14402817,82.345,82.32,0.81590383]
[1772974634074,0.7966275,82.344,82.32,0.81590383]
[1772974634282,0.7966275,82.344,82.319,62.2]
[1772974635984,0.7966275,82.342,82.319,62.2]
[1772974637684,0.7966275,82.342,82.314,0.81590383]
[1772974638286,0.28432314,82.351,82.279,27.6]
[1772974638287,0.7966275,82.339,82.279,27.6]
[1772974638579,0.28432314,82.339,82.28,27.6]
[1772974638782,0.7966275,82.337,82.28,27.6]
[1772974638981,1.08095064,82.336,82.28,27.6]
[1772974639287,0.28432314,82.334,82.28,27.6]
[1772974639466,0.7966275,82.332,82.281,12.15347407]
[1772974640264,0.7966275,82.332,82.282,0.81590383]
[1772974642785,0.7966275,82.33,82.284,0.81590383]
[1772974645768,0.7966275,82.328,82.286,0.81590383]
[1772974648695,42.51235894,82.329,82.281,30.38368517]
[1772974648696,0.7966275,82.326,82.289,0.81590383]
[1772974651701,0.7966275,82.324,82.292,0.81590383]
[1772974654793,0.80298474,82.322,82.295,0.87591051]
[1772974654989,0.80298474,82.322,82.296,0.87591051]
[1772974657496,0.80298474,82.32,82.282,5.6]
[1772974657698,0.80298474,82.319,82.272,0.87591051]
[1772974657903,1.08730788,82.318,82.272,0.87591051]
[1772974658206,0.80298474,82.315,82.273,0.87591051]
[1772974658398,1.08730788,82.314,82.273,0.87591051]
[1772974658709,0.80298474,82.312,82.273,0.87591051]
[1772974659790,0.80298474,82.31,82.273,0.87591051]
[1772974660992,0.80298474,82.31,82.274,12.1545081]
[1772974661511,0.80298474,82.31,82.274,13.03041861]
[1772974661810,0.80298474,82.308,82.274,13.03041861]
[1772974662602,0.80298474,82.308,82.275,0.87591051]
[1772974662804,0.28432314,82.321,82.275,0.87591051]
[1772974662805,0.80298474,82.306,82.275,0.87591051]
[1772974666036,0.80298474,82.304,82.275,0.87591051]
[1772974668932,0.80298474,82.302,82.275,0.87591051]
[1772974670641,0.80298474,82.3,82.275,0.87591051]
[1772974671721,0.80298474,82.298,82.275,0.87591051]
[1772974672536,0.80298474,82.298,82.276,0.87591051]
[1772974674327,0.80298474,82.296,82.276,0.87591051]
[1772974675337,12.15140652,82.295,82.277,0.87591051]
[1772974675546,12.95439126,82.295,82.277,0.87591051]
[1772974676424,0.80298474,82.294,82.277,0.87591051]
[1772974677833,12.15170184,82.293,82.277,0.87591051]
[1772974678035,0.80298474,82.292,82.277,0.87591051]
[1772974680046,12.15199718,82.291,82.277,0.87591051]
[1772974680629,0.80298474,82.308,82.277,0.87591051]